[Event "*** SCC Grand Prix: Titled Tuesday Blitz"]
[Site "Chess.com"]
[Date "2020.07.21"]
[Round "10"]
[White "DenisQ"]
[Black "MathiasWomacka"]
[Result "1-0"]
[WhiteElo "2633"]
[BlackElo "2471"]
[TimeControl "180+1"]
[EndTime "12:01:39 PDT"]
[Termination "DenisQ won on time"]

1. Nf3 {[%clk 0:03:00.9]} 1... c5 {[%clk 0:02:59.2]} 2. c4 {[%clk 0:03:00.1]}
2... Nf6 {[%clk 0:02:58.2]} 3. Nc3 {[%clk 0:03:00.1]} 3... e6 {[%clk 0:02:57.2]}
4. g3 {[%clk 0:02:59.3]} 4... b6 {[%clk 0:02:57.3]} 5. Bg2 {[%clk 0:02:59.1]}
5... Bb7 {[%clk 0:02:57.9]} 6. O-O {[%clk 0:02:58.8]} 6... Be7 {[%clk
0:02:57.2]} 7. b3 {[%clk 0:02:58.2]} 7... O-O {[%clk 0:02:55.9]} 8. Bb2 {[%clk
0:02:58.3]} 8... d5 {[%clk 0:02:55.8]} 9. cxd5 {[%clk 0:02:57.9]} 9... Nxd5
{[%clk 0:02:56.7]} 10. Nxd5 {[%clk 0:02:57.6]} 10... Bxd5 {[%clk 0:02:55.7]} 11.
d4 {[%clk 0:02:51.6]} 11... Nd7 {[%clk 0:02:54.3]} 12. Rc1 {[%clk 0:02:48]}
12... Rc8 {[%clk 0:02:50.2]} 13. Qd3 {[%clk 0:02:46.5]} 13... cxd4 {[%clk
0:02:40.9]} 14. Bxd4 {[%clk 0:02:39.1]} 14... Nc5 {[%clk 0:02:36.5]} 15. Qe3
{[%clk 0:02:38]} 15... a5 {[%clk 0:02:03.6]} 16. Rfd1 {[%clk 0:02:34]} 16... Qc7
{[%clk 0:02:02.9]} 17. Qe5 {[%clk 0:02:28]} 17... Qxe5 {[%clk 0:02:00.4]} 18.
Nxe5 {[%clk 0:02:28.9]} 18... Bxg2 {[%clk 0:01:58.5]} 19. Kxg2 {[%clk
0:02:27.6]} 19... Bf6 {[%clk 0:01:40.8]} 20. Bxc5 {[%clk 0:02:22.9]} 20... Rxc5
{[%clk 0:01:34.8]} 21. Rxc5 {[%clk 0:02:21]} 21... bxc5 {[%clk 0:01:35.7]} 22.
Nc4 {[%clk 0:02:01]} 22... Ra8 {[%clk 0:01:35.2]} 23. Nb6 {[%clk 0:01:52.8]}
23... Ra6 {[%clk 0:01:32.8]} 24. Nd7 {[%clk 0:01:48.3]} 24... Rc6 {[%clk
0:01:19.6]} 25. Rc1 {[%clk 0:01:44.9]} 25... Be7 {[%clk 0:01:16]} 26. Ne5 {[%clk
0:01:43.9]} 26... Rc7 {[%clk 0:01:16]} 27. Rc4 {[%clk 0:01:42.4]} 27... f6
{[%clk 0:01:13.7]} 28. Nd3 {[%clk 0:01:41.4]} 28... Kf7 {[%clk 0:01:13.5]} 29.
Kf3 {[%clk 0:01:25.4]} 29... Bd6 {[%clk 0:01:13.2]} 30. Ra4 {[%clk 0:01:17.4]}
30... Ra7 {[%clk 0:01:12.3]} 31. Ke3 {[%clk 0:01:14.8]} 31... Ke7 {[%clk
0:01:11.4]} 32. Kd2 {[%clk 0:01:14.6]} 32... Kd7 {[%clk 0:01:11.5]} 33. Kc3
{[%clk 0:01:14.7]} 33... Kc6 {[%clk 0:01:11.7]} 34. Re4 {[%clk 0:01:11.1]} 34...
e5 {[%clk 0:01:04.9]} 35. g4 {[%clk 0:01:09.8]} 35... Kb5 {[%clk 0:01:01]} 36.
h4 {[%clk 0:01:05]} 36... a4 {[%clk 0:00:51.3]} 37. Rxa4 {[%clk 0:01:00.5]}
37... Rxa4 {[%clk 0:00:51]} 38. bxa4+ {[%clk 0:01:01.4]} 38... Kxa4 {[%clk
0:00:51.5]} 39. Kc4 {[%clk 0:00:59.8]} 39... Ka3 {[%clk 0:00:51.7]} 40. Nxc5
{[%clk 0:00:59.7]} 40... Kxa2 {[%clk 0:00:52]} 41. Ne6 {[%clk 0:00:57.9]} 41...
g6 {[%clk 0:00:41.9]} 42. Kd5 {[%clk 0:00:57.2]} 42... Bb4 {[%clk 0:00:39.5]}
43. g5 {[%clk 0:00:52.2]} 43... fxg5 {[%clk 0:00:38.4]} 44. Nxg5 {[%clk
0:00:53]} 44... Be1 {[%clk 0:00:36.8]} 45. Ne4 {[%clk 0:00:48]} 45... Kb3 {[%clk
0:00:32.3]} 46. Kxe5 {[%clk 0:00:48.2]} 46... Kc2 {[%clk 0:00:32.3]} 47. Kf4
{[%clk 0:00:46.8]} 47... Ba5 {[%clk 0:00:17.6]} 48. Ng5 {[%clk 0:00:39.1]} 48...
Kd2 {[%clk 0:00:14]} 49. Kf3 {[%clk 0:00:37.7]} 49... Bd8 {[%clk 0:00:12.9]} 50.
Nxh7 {[%clk 0:00:28]} 50... Bxh4 {[%clk 0:00:12.7]} 51. Nf8 {[%clk 0:00:27.8]}
51... g5 {[%clk 0:00:12.3]} 52. Ng6 {[%clk 0:00:16.7]} 52... g4+ {[%clk
0:00:12]} 53. Kg2 {[%clk 0:00:16.9]} 53... Bg5 {[%clk 0:00:11.6]} 54. Kf1 {[%clk
0:00:15]} 54... g3 {[%clk 0:00:06]} 55. fxg3 {[%clk 0:00:14.6]} 55... Ke3 {[%clk
0:00:06.1]} 56. Ne5 {[%clk 0:00:12.7]} 56... Bd8 {[%clk 0:00:05.1]} 57. Ng4+
{[%clk 0:00:13.3]} 57... Ke4 {[%clk 0:00:04.7]} 58. Kg2 {[%clk 0:00:13.7]} 58...
Bc7 {[%clk 0:00:03.6]} 59. Nf2+ {[%clk 0:00:13.5]} 59... Ke3 {[%clk 0:00:03.9]}
60. g4 {[%clk 0:00:10.5]} 60... Kxe2 {[%clk 0:00:04]} 61. g5 {[%clk 0:00:10.4]}
61... Be5 {[%clk 0:00:03.1]} 62. g6 {[%clk 0:00:10.2]} 62... Bg7 {[%clk
0:00:02.9]} 63. Kg3 {[%clk 0:00:10]} 63... Ke3 {[%clk 0:00:02.7]} 64. Nh3 {[%clk
0:00:09.9]} 64... Ke4 {[%clk 0:00:02.7]} 65. Kg4 {[%clk 0:00:10.6]} 65... Ke5
{[%clk 0:00:02.8]} 66. Kg5 {[%clk 0:00:11.2]} 66... Ke6 {[%clk 0:00:02.8]} 67.
Nf4+ {[%clk 0:00:11.3]} 67... Ke7 {[%clk 0:00:03]} 68. Nh5 {[%clk 0:00:11.3]}
68... Bc3 {[%clk 0:00:02.6]} 69. Kf5 {[%clk 0:00:11.4]} 69... Bb2 {[%clk
0:00:02.4]} 70. Nf4 {[%clk 0:00:10.7]} 70... Bc3 {[%clk 0:00:02.4]} 71. Nd5+
{[%clk 0:00:10.7]} 71... Kf8 {[%clk 0:00:02.7]} 72. Nxc3 {[%clk 0:00:11.6]}
72... Kg7 {[%clk 0:00:03.5]} 73. Ne4 {[%clk 0:00:11.7]} 73... Kg8 {[%clk
0:00:03]} 74. Kf6 {[%clk 0:00:12.6]} 74... Kf8 {[%clk 0:00:03.1]} 75. g7+ {[%clk
0:00:13.1]} 75... Kg8 {[%clk 0:00:04]} 76. Nd6 {[%clk 0:00:13.2]} 76... Kh7
{[%clk 0:00:03.7]} 77. Kf7 {[%clk 0:00:14.1]} 1-0

[Event "*** SCC Grand Prix: Titled Tuesday Blitz"]
[Site "Chess.com"]
[Date "2020.07.21"]
[Round "10"]
[White "ulises2013"]
[Black "Zkid"]
[Result "1/2-1/2"]
[WhiteElo "2648"]
[BlackElo "2781"]
[TimeControl "180+1"]
[EndTime "12:01:40 PDT"]
[Termination "Game drawn by agreement"]

1. d4 {[%clk 0:03:00.9]} 1... d5 {[%clk 0:02:59.6]} 2. c4 {[%clk 0:03:00.9]}
2... dxc4 {[%clk 0:03:00.5]} 3. Nf3 {[%clk 0:02:59.7]} 3... Nf6 {[%clk
0:03:00.6]} 4. e3 {[%clk 0:02:58.9]} 4... e6 {[%clk 0:03:00.7]} 5. Bxc4 {[%clk
0:02:58]} 5... c5 {[%clk 0:03:01.1]} 6. O-O {[%clk 0:02:55.8]} 6... Nc6 {[%clk
0:03:01.3]} 7. dxc5 {[%clk 0:02:53.6]} 7... Bxc5 {[%clk 0:02:59.1]} 8. Qxd8+
{[%clk 0:02:52.6]} 8... Kxd8 {[%clk 0:03:00]} 9. b3 {[%clk 0:02:39.2]} 9... b6
{[%clk 0:02:48.7]} 10. Bb2 {[%clk 0:02:38.7]} 10... Bb7 {[%clk 0:02:47.6]} 11.
Nbd2 {[%clk 0:02:37.5]} 11... Ke7 {[%clk 0:02:44]} 12. Rfd1 {[%clk 0:02:37.2]}
12... Rhd8 {[%clk 0:02:41]} 13. a3 {[%clk 0:02:23.9]} 13... Rac8 {[%clk
0:02:29.8]} 14. b4 {[%clk 0:02:21.5]} 14... Bd6 {[%clk 0:02:29]} 15. Be2 {[%clk
0:02:20.2]} 15... Bb8 {[%clk 0:02:17.4]} 16. Rac1 {[%clk 0:01:59.7]} 16... g6
{[%clk 0:01:56.4]} 17. Kf1 {[%clk 0:01:57]} 17... h5 {[%clk 0:01:50.9]} 18. Ke1
{[%clk 0:01:52.6]} 18... Nd5 {[%clk 0:01:48.1]} 19. g3 {[%clk 0:01:36.9]} 19...
f6 {[%clk 0:01:37.6]} 20. h4 {[%clk 0:01:31.1]} 20... Kf7 {[%clk 0:01:23.9]} 21.
Nb3 {[%clk 0:01:18.5]} 21... Nce7 {[%clk 0:01:06.4]} 22. Rxc8 {[%clk 0:01:13.9]}
22... Rxc8 {[%clk 0:01:07.3]} 23. Rc1 {[%clk 0:01:13.9]} 23... Rxc1+ {[%clk
0:01:05.9]} 24. Nxc1 {[%clk 0:01:13.4]} 24... e5 {[%clk 0:01:06.2]} 25. Nd2
{[%clk 0:01:12.3]} 25... Ke6 {[%clk 0:01:01.9]} 26. Bc4 {[%clk 0:01:05.8]} 26...
Kd7 {[%clk 0:00:59.5]} 27. e4 {[%clk 0:01:05.7]} 27... Nc7 {[%clk 0:00:58.4]}
28. Ke2 {[%clk 0:01:02.3]} 28... Ne6 {[%clk 0:00:58.1]} 29. Ncb3 {[%clk
0:01:00.5]} 29... Bc6 {[%clk 0:00:55]} 30. f3 {[%clk 0:00:54.1]} 30... Bd6
{[%clk 0:00:53]} 31. Bc3 {[%clk 0:00:50.5]} 31... Ba4 {[%clk 0:00:52.1]} 32. Bd3
{[%clk 0:00:46.1]} 32... Nc7 {[%clk 0:00:51.5]} 33. Bb2 {[%clk 0:00:44.5]} 33...
Nc6 {[%clk 0:00:48.7]} 34. Bc4 {[%clk 0:00:42.4]} 34... a5 {[%clk 0:00:45.2]}
35. bxa5 {[%clk 0:00:38.8]} 35... bxa5 {[%clk 0:00:42.2]} 36. Bf7 {[%clk
0:00:36]} 36... Bb5+ {[%clk 0:00:40]} 37. Bc4 {[%clk 0:00:35.7]} 37... a4 {[%clk
0:00:37.8]} 38. Na1 {[%clk 0:00:32.4]} 38... Bc5 {[%clk 0:00:34.7]} 39. Nc2
{[%clk 0:00:30.7]} 39... Bxc4+ {[%clk 0:00:34.4]} 40. Nxc4 {[%clk 0:00:31.6]}
40... Nb5 {[%clk 0:00:35]} 41. g4 {[%clk 0:00:28.7]} 41... Ke6 {[%clk 0:00:34]}
42. gxh5 {[%clk 0:00:27.9]} 42... gxh5 {[%clk 0:00:34.9]} 43. N4e3 {[%clk
0:00:14.4]} 43... Ne7 {[%clk 0:00:28.1]} 44. Kd3 {[%clk 0:00:11.6]} 44... Kd7
{[%clk 0:00:27.7]} 45. Kc4 {[%clk 0:00:07.8]} 45... Kc6 {[%clk 0:00:16.3]} 46.
Nb4+ {[%clk 0:00:07.9]} 46... Bxb4 {[%clk 0:00:15.6]} 47. Kxb4 {[%clk
0:00:08.8]} 47... Ng6 {[%clk 0:00:15.9]} 48. Nf5 {[%clk 0:00:08.4]} 48... Nd6
{[%clk 0:00:15.6]} 49. Ng7 {[%clk 0:00:07.4]} 49... Nf4 {[%clk 0:00:14.3]} 50.
Kxa4 {[%clk 0:00:06.2]} 50... Nd3 {[%clk 0:00:13.5]} 51. Kb3 {[%clk 0:00:04.4]}
51... Nf4 {[%clk 0:00:10.9]} 52. Bc1 {[%clk 0:00:04.3]} 52... Ne2 {[%clk
0:00:11.2]} 53. Be3 {[%clk 0:00:04.2]} 53... Ng3 {[%clk 0:00:10]} 54. a4 {[%clk
0:00:03.8]} 54... f5 {[%clk 0:00:07]} 55. exf5 {[%clk 0:00:02.2]} 55... Ndxf5
{[%clk 0:00:07.5]} 56. Nxf5 {[%clk 0:00:02.9]} 56... Nxf5 {[%clk 0:00:07.5]} 57.
Bf2 {[%clk 0:00:03.8]} 57... Nd6 {[%clk 0:00:07.5]} 58. Kb4 {[%clk 0:00:03.9]}
58... e4 {[%clk 0:00:07.8]} 59. fxe4 {[%clk 0:00:04.4]} 59... Nxe4 {[%clk
0:00:08.7]} 60. Be1 {[%clk 0:00:05.3]} 60... Nc5 {[%clk 0:00:08.5]} 61. Kc4
{[%clk 0:00:05.5]} 61... Nxa4 {[%clk 0:00:08.5]} 62. Kd4 {[%clk 0:00:06.2]}
62... Kd6 {[%clk 0:00:08.9]} 63. Ke4 {[%clk 0:00:06.8]} 63... Ke6 {[%clk
0:00:09.5]} 64. Kf4 {[%clk 0:00:07.5]} 64... Kf6 {[%clk 0:00:10]} 65. Kg3 {[%clk
0:00:07.9]} 65... Kf5 {[%clk 0:00:10.2]} 66. Kf3 {[%clk 0:00:08.5]} 66... Nc5
{[%clk 0:00:10.6]} 67. Bg3 {[%clk 0:00:08.9]} 67... Ne6 {[%clk 0:00:10.5]} 68.
Bf2 {[%clk 0:00:09.3]} 68... Nf4 {[%clk 0:00:09.4]} 69. Bg3 {[%clk 0:00:09.7]}
69... Nd3 {[%clk 0:00:09.7]} 70. Bf2 {[%clk 0:00:10.6]} 70... Ne5+ {[%clk
0:00:09.6]} 71. Kg3 {[%clk 0:00:11]} 71... Ke4 {[%clk 0:00:10.2]} 72. Bb6 {[%clk
0:00:10.3]} 72... Nd3 {[%clk 0:00:10]} 73. Bd8 {[%clk 0:00:10.4]} 73... Ke3
{[%clk 0:00:10.3]} 74. Bg5+ {[%clk 0:00:10.6]} 74... Ke4 {[%clk 0:00:10.4]} 75.
Bd8 {[%clk 0:00:11.5]} 75... Nf4 {[%clk 0:00:06.6]} 76. Bg5 {[%clk 0:00:12.4]}
76... Ne2+ {[%clk 0:00:06]} 1/2-1/2

[Event "*** SCC Grand Prix: Titled Tuesday Blitz"]
[Site "Chess.com"]
[Date "2020.07.21"]
[Round "10"]
[White "Ramil_Faizrakhmanov"]
[Black "blitzking1729"]
[Result "1-0"]
[WhiteElo "2781"]
[BlackElo "2582"]
[TimeControl "180+1"]
[EndTime "12:01:40 PDT"]
[Termination "Ramil_Faizrakhmanov won on time"]

1. d4 {[%clk 0:03:00.7]} 1... d5 {[%clk 0:02:59.3]} 2. c4 {[%clk 0:03:00.5]}
2... e6 {[%clk 0:02:59.3]} 3. Nf3 {[%clk 0:03:00.6]} 3... c5 {[%clk 0:02:59.1]}
4. cxd5 {[%clk 0:03:00.6]} 4... exd5 {[%clk 0:03:00]} 5. g3 {[%clk 0:03:00.8]}
5... Nc6 {[%clk 0:02:59.8]} 6. Nc3 {[%clk 0:03:00.9]} 6... Nf6 {[%clk
0:02:59.7]} 7. Bg2 {[%clk 0:03:00.5]} 7... cxd4 {[%clk 0:02:59.7]} 8. Nxd4
{[%clk 0:03:00.2]} 8... Bc5 {[%clk 0:02:59.2]} 9. Nxc6 {[%clk 0:02:54.6]} 9...
bxc6 {[%clk 0:03:00.1]} 10. O-O {[%clk 0:02:54.6]} 10... O-O {[%clk 0:02:58]}
11. b3 {[%clk 0:02:54]} 11... Re8 {[%clk 0:02:55.2]} 12. Bb2 {[%clk 0:02:53.6]}
12... h5 {[%clk 0:02:55.4]} 13. Rc1 {[%clk 0:02:48.2]} 13... Bb6 {[%clk
0:02:52.7]} 14. Na4 {[%clk 0:02:47.7]} 14... Bd7 {[%clk 0:02:52]} 15. h4 {[%clk
0:02:24.5]} 15... Qe7 {[%clk 0:02:45.3]} 16. e3 {[%clk 0:02:13.1]} 16... Ng4
{[%clk 0:02:28.7]} 17. Bd4 {[%clk 0:02:02.7]} 17... Bxd4 {[%clk 0:02:22.3]} 18.
Qxd4 {[%clk 0:02:03.6]} 18... Ne5 {[%clk 0:02:13.6]} 19. Rc3 {[%clk 0:01:56.7]}
19... Bg4 {[%clk 0:02:05.5]} 20. f4 {[%clk 0:01:55.6]} 20... Nd7 {[%clk
0:02:01.7]} 21. Rxc6 {[%clk 0:01:44.1]} 21... Qxe3+ {[%clk 0:01:59.1]} 22. Qxe3
{[%clk 0:01:45]} 22... Rxe3 {[%clk 0:01:59.2]} 23. Bxd5 {[%clk 0:01:42.5]} 23...
Rxg3+ {[%clk 0:01:48.2]} 24. Kf2 {[%clk 0:01:40.7]} 24... Rd3 {[%clk 0:01:47.8]}
25. Rd6 {[%clk 0:01:27.1]} 25... Kh8 {[%clk 0:00:44.8]} 26. Bxa8 {[%clk
0:00:47]} 26... Rxd6 {[%clk 0:00:41.9]} 27. Ke3 {[%clk 0:00:42.2]} 27... Re6+
{[%clk 0:00:36.2]} 28. Kd4 {[%clk 0:00:38.6]} 28... Nf6 {[%clk 0:00:26.8]} 29.
Nc5 {[%clk 0:00:32.1]} 29... Re2 {[%clk 0:00:25.2]} 30. a4 {[%clk 0:00:32.1]}
30... Rd2+ {[%clk 0:00:23.6]} 31. Kc3 {[%clk 0:00:31.8]} 31... Rh2 {[%clk
0:00:22.7]} 32. Rh1 {[%clk 0:00:31.7]} 32... Rf2 {[%clk 0:00:20.8]} 33. Nd3
{[%clk 0:00:32.6]} 33... Re2 {[%clk 0:00:18.1]} 34. Re1 {[%clk 0:00:29.9]} 34...
Rh2 {[%clk 0:00:17.5]} 35. Rh1 {[%clk 0:00:30.8]} 35... Re2 {[%clk 0:00:14.7]}
36. Ne5 {[%clk 0:00:30.8]} 36... Bf5 {[%clk 0:00:08.8]} 37. Nxf7+ {[%clk
0:00:29.1]} 37... Kh7 {[%clk 0:00:07.6]} 38. Ne5 {[%clk 0:00:28.2]} 38... Rc2+
{[%clk 0:00:06.5]} 39. Kb4 {[%clk 0:00:27.8]} 39... Rc8 {[%clk 0:00:04.4]} 40.
Bf3 {[%clk 0:00:26.6]} 40... Be6 {[%clk 0:00:04.2]} 41. Nc6 {[%clk 0:00:24.4]}
41... Bd5 {[%clk 0:00:03.1]} 42. Bxd5 {[%clk 0:00:19.4]} 42... Nxd5+ {[%clk
0:00:03.1]} 43. Kb5 {[%clk 0:00:19.4]} 43... a6+ {[%clk 0:00:03]} 44. Kxa6
{[%clk 0:00:16.2]} 44... Rxc6+ {[%clk 0:00:02.7]} 45. Kb5 {[%clk 0:00:16.3]}
45... Rc3 {[%clk 0:00:02.7]} 46. Rb1 {[%clk 0:00:15.5]} 46... Nxf4 {[%clk
0:00:02.7]} 47. a5 {[%clk 0:00:15.4]} 47... Ne6 {[%clk 0:00:03.2]} 48. a6 {[%clk
0:00:15.4]} 48... Rc7 {[%clk 0:00:03.2]} 49. Kb6 {[%clk 0:00:14.9]} 49... Rc8
{[%clk 0:00:03.6]} 50. a7 {[%clk 0:00:15.3]} 50... Nd8 {[%clk 0:00:03]} 51. b4
{[%clk 0:00:10.6]} 51... g5 {[%clk 0:00:01.9]} 52. hxg5 {[%clk 0:00:10.4]} 52...
Kg6 {[%clk 0:00:02.5]} 53. b5 {[%clk 0:00:09.8]} 53... Kxg5 {[%clk 0:00:02.9]}
54. Ka6 {[%clk 0:00:09.7]} 54... h4 {[%clk 0:00:03.3]} 55. b6 {[%clk 0:00:10.1]}
55... h3 {[%clk 0:00:03]} 56. Rg1+ {[%clk 0:00:07.3]} 56... Kh4 {[%clk
0:00:02.5]} 57. Rg8 {[%clk 0:00:07.3]} 57... h2 {[%clk 0:00:02.4]} 58. Rh8+
{[%clk 0:00:07.1]} 58... Kg3 {[%clk 0:00:02.3]} 59. Kb5 {[%clk 0:00:06.8]} 59...
Nb7 {[%clk 0:00:01.7]} 60. Rxc8 {[%clk 0:00:05.3]} 60... h1=Q {[%clk 0:00:01.3]}
61. Rg8+ {[%clk 0:00:04]} 1-0

[Event "*** SCC Grand Prix: Titled Tuesday Blitz"]
[Site "Chess.com"]
[Date "2020.07.21"]
[Round "10"]
[White "Happy1712Drummer"]
[Black "The_Machine04"]
[Result "1-0"]
[WhiteElo "2433"]
[BlackElo "2289"]
[TimeControl "180+1"]
[EndTime "12:01:40 PDT"]
[Termination "Happy1712Drummer won on time"]

1. d4 {[%clk 0:03:00.9]} 1... d6 {[%clk 0:02:59.8]} 2. Nf3 {[%clk 0:02:54.7]}
2... Nf6 {[%clk 0:02:59.7]} 3. g3 {[%clk 0:02:48.9]} 3... Nbd7 {[%clk
0:02:57.2]} 4. Bg2 {[%clk 0:02:45.1]} 4... e5 {[%clk 0:02:57.5]} 5. c4 {[%clk
0:02:35.3]} 5... Be7 {[%clk 0:02:53.1]} 6. Nc3 {[%clk 0:02:31.9]} 6... c6 {[%clk
0:02:53.2]} 7. O-O {[%clk 0:02:25.8]} 7... O-O {[%clk 0:02:52.7]} 8. Qc2 {[%clk
0:02:21.7]} 8... Qc7 {[%clk 0:02:50.5]} 9. Rd1 {[%clk 0:02:16.9]} 9... Re8
{[%clk 0:02:46.3]} 10. h3 {[%clk 0:02:10.5]} 10... Bf8 {[%clk 0:02:45.3]} 11. e4
{[%clk 0:02:03.5]} 11... a6 {[%clk 0:02:43.1]} 12. Be3 {[%clk 0:01:59.7]} 12...
Qb8 {[%clk 0:02:42.1]} 13. d5 {[%clk 0:01:54]} 13... cxd5 {[%clk 0:02:41.6]} 14.
cxd5 {[%clk 0:01:50.8]} 14... b5 {[%clk 0:02:41.3]} 15. b4 {[%clk 0:01:47.9]}
15... Nb6 {[%clk 0:02:41.1]} 16. Nd2 {[%clk 0:01:47]} 16... Bd7 {[%clk
0:02:40.1]} 17. Qd3 {[%clk 0:01:21.3]} 17... Rc8 {[%clk 0:02:38.9]} 18. Rdc1
{[%clk 0:01:19]} 18... Ra7 {[%clk 0:02:35.5]} 19. Nb3 {[%clk 0:01:10.8]} 19...
Rac7 {[%clk 0:02:31]} 20. Na5 {[%clk 0:01:05.9]} 20... Nc4 {[%clk 0:02:29.9]}
21. Nxc4 {[%clk 0:00:56.2]} 21... Rxc4 {[%clk 0:02:30.8]} 22. a3 {[%clk
0:00:53]} 22... Be7 {[%clk 0:02:21.2]} 23. Nd1 {[%clk 0:00:40.8]} 23... Bd8
{[%clk 0:02:17.7]} 24. Nb2 {[%clk 0:00:38.7]} 24... Rxc1+ {[%clk 0:02:16.1]} 25.
Rxc1 {[%clk 0:00:39.6]} 25... Rxc1+ {[%clk 0:02:12.1]} 26. Bxc1 {[%clk
0:00:39.3]} 26... Bb6 {[%clk 0:02:11.4]} 27. Qc2 {[%clk 0:00:37]} 27... Qc8
{[%clk 0:02:08.8]} 28. Qxc8+ {[%clk 0:00:35.9]} 28... Bxc8 {[%clk 0:02:09.7]}
29. a4 {[%clk 0:00:30.5]} 29... Bd7 {[%clk 0:01:57]} 30. a5 {[%clk 0:00:27.4]}
30... Bd4 {[%clk 0:01:53]} 31. Nd3 {[%clk 0:00:27.7]} 31... Bc8 {[%clk
0:01:51.4]} 32. Kf1 {[%clk 0:00:26.7]} 32... Nd7 {[%clk 0:01:46.7]} 33. Bb2
{[%clk 0:00:19.9]} 33... Bxb2 {[%clk 0:01:42.6]} 34. Nxb2 {[%clk 0:00:20.8]}
34... g6 {[%clk 0:01:41.6]} 35. g4 {[%clk 0:00:20.1]} 35... f5 {[%clk
0:01:35.4]} 36. f3 {[%clk 0:00:18.8]} 36... fxg4 {[%clk 0:01:29.5]} 37. fxg4
{[%clk 0:00:17.5]} 37... Nf6 {[%clk 0:01:23.1]} 38. g5 {[%clk 0:00:16.8]} 38...
Nh5 {[%clk 0:01:22.6]} 39. Nd3 {[%clk 0:00:15.6]} 39... Kg7 {[%clk 0:01:15.2]}
40. Kf2 {[%clk 0:00:15.7]} 40... h6 {[%clk 0:01:14.7]} 41. h4 {[%clk 0:00:15.8]}
41... hxg5 {[%clk 0:01:13.6]} 42. hxg5 {[%clk 0:00:16.7]} 42... Kf7 {[%clk
0:01:13.7]} 43. Bf3 {[%clk 0:00:14.1]} 43... Ng7 {[%clk 0:01:07.6]} 44. Ne1
{[%clk 0:00:12.8]} 44... Bd7 {[%clk 0:01:00.4]} 45. Nd3 {[%clk 0:00:13]} 45...
Nh5 {[%clk 0:00:55.3]} 46. Be2 {[%clk 0:00:12.9]} 46... Ng7 {[%clk 0:00:43.3]}
47. Bf3 {[%clk 0:00:12.8]} 47... Kg8 {[%clk 0:00:30.7]} 48. Ne1 {[%clk
0:00:12.7]} 48... Kh7 {[%clk 0:00:29.2]} 49. Ng2 {[%clk 0:00:12.7]} 49... Kg8
{[%clk 0:00:23.4]} 50. Nh4 {[%clk 0:00:12.2]} 50... Kf7 {[%clk 0:00:23.1]} 51.
Kg3 {[%clk 0:00:12.7]} 51... Bc8 {[%clk 0:00:20.6]} 52. Bg4 {[%clk 0:00:09.9]}
52... Bxg4 {[%clk 0:00:20.5]} 53. Kxg4 {[%clk 0:00:10.8]} 53... Nh5 {[%clk
0:00:20.8]} 54. Ng2 {[%clk 0:00:10.8]} 54... Ke7 {[%clk 0:00:19.7]} 55. Ne3
{[%clk 0:00:10.4]} 55... Nf4 {[%clk 0:00:19.1]} 56. Nd1 {[%clk 0:00:10.6]} 56...
Nd3 {[%clk 0:00:18.2]} 57. Ne3 {[%clk 0:00:10.4]} 57... Nxb4 {[%clk 0:00:17.3]}
58. Ng2 {[%clk 0:00:10]} 58... Nd3 {[%clk 0:00:16]} 59. Nh4 {[%clk 0:00:10.9]}
59... Nf4 {[%clk 0:00:16.1]} 60. Kf3 {[%clk 0:00:10.2]} 60... Kf7 {[%clk
0:00:14.1]} 61. Ke3 {[%clk 0:00:10.3]} 61... Nh5 {[%clk 0:00:10.3]} 62. Nf3
{[%clk 0:00:11.2]} 62... Ng3 {[%clk 0:00:09.9]} 63. Ne1 {[%clk 0:00:10.7]} 63...
Nf1+ {[%clk 0:00:08.4]} 64. Ke2 {[%clk 0:00:09.5]} 64... Ng3+ {[%clk 0:00:07.6]}
65. Kf3 {[%clk 0:00:09.6]} 65... Nh5 {[%clk 0:00:07.9]} 66. Nc2 {[%clk
0:00:08.9]} 66... Nf4 {[%clk 0:00:05.4]} 67. Nb4 {[%clk 0:00:09.8]} 67... Nd3
{[%clk 0:00:04.4]} 68. Nxd3 {[%clk 0:00:09.4]} 68... Ke7 {[%clk 0:00:03.2]} 69.
Nb4 {[%clk 0:00:10.3]} 69... Kd7 {[%clk 0:00:04.1]} 70. Nxa6 {[%clk 0:00:10.4]}
70... Kc8 {[%clk 0:00:05]} 71. Nb4 {[%clk 0:00:10.5]} 71... Kb7 {[%clk
0:00:05.3]} 72. Ke3 {[%clk 0:00:11.2]} 72... Ka7 {[%clk 0:00:05.3]} 73. Kd2
{[%clk 0:00:12.1]} 73... Kb7 {[%clk 0:00:05.8]} 74. Kc3 {[%clk 0:00:13]} 74...
Ka7 {[%clk 0:00:06.3]} 75. Kb3 {[%clk 0:00:13.5]} 75... Kb7 {[%clk 0:00:05]} 76.
Nc6 {[%clk 0:00:14]} 76... Ka6 {[%clk 0:00:03.9]} 77. Kb4 {[%clk 0:00:14.9]}
77... Kb7 {[%clk 0:00:04.1]} 78. Kxb5 {[%clk 0:00:15.4]} 78... Kc7 {[%clk
0:00:05]} 79. Ne7 {[%clk 0:00:15.1]} 1-0